bitfinex-derivatives/quotes_SOLF0:USTF0_20250505
["timestamp","ask_amount","ask_price","bid_price","bid_amount"]
[1746481884322,7.24578391,146.9,146.88,6.8092]
[1746481886825,14.05388391,146.91,146.88,6.8092]
[1746481888021,7.24578391,146.91,146.89,6.8084]
[1746481888224,7.24578391,146.91,146.85,35.47008391]
[1746481888629,7.24578391,146.91,146.89,6.8085]
[1746481891532,14.05368391,146.91,146.89,6.8085]
[1746481892234,7.24578391,146.91,146.89,6.8085]
[1746481893034,14.05378391,146.91,146.89,6.8085]
[1746481900041,7.24578391,146.91,146.89,6.8085]
[1746481900239,7.24578391,146.91,146.85,35.47008391]
[1746481900240,7.24578391,146.91,146.9,6.8083]
[1746481900937,14.05378391,146.91,146.89,6.8085]
[1746481902237,14.05368391,146.91,146.89,6.8086]
[1746481902441,14.0533222,146.91,146.89,6.8086]
[1746481913957,6.8079,146.91,146.89,6.8086]
[1746481914257,6.8077,146.92,146.89,6.8086]
[1746481916360,6.808,146.91,146.89,6.8086]
[1746481919360,14.0516891,146.92,146.9,6.8083]
[1746481919561,14.05151983,146.92,146.9,6.8083]
[1746481920364,6.8075,146.92,146.9,6.8083]
[1746481922968,14.05085015,146.93,146.9,6.8083]
[1746481923468,6.8075,146.92,146.9,6.8083]
[1746481931560,20.4126,146.99,146.9,6.8083]
[1746481931767,1.18482202,147.01,146.85,17.7452]
[1746481931965,102.54515715,147.04,146.91,7.23856788]
[1746481932166,7.23856788,146.97,146.92,28.1462]
[1746481932367,7.23856788,146.97,146.95,6.806]
[1746481932772,7.23856788,146.97,146.96,6.8055]
[1746481933678,6.8039,147.0,146.97,6.8051]
[1746481933866,7.23856788,146.98,146.97,6.8051]
[1746481934270,30.8633,147.01,146.92,28.1462]
[1746481934474,7.23856788,146.99,146.92,35.38476788]
[1746481934671,24.06,147.01,146.92,35.38476788]
[1746481934878,96.50365715,147.04,146.94,7.23856788]
[1746481935078,7.23856788,147.0,146.94,7.23856788]
[1746481935280,7.23856788,147.0,146.92,28.1462]
[1746481935478,7.23856788,147.0,146.99,6.8042]
[1746481936281,7.23856788,147.0,146.98,6.8044]
[1746481936579,7.23856788,147.0,146.96,24.04]
[1746481936769,14.04226788,147.0,146.96,30.8452]
[1746481937779,14.04226788,147.0,146.97,6.8051]
[1746481937780,6.8037,147.0,146.97,6.8051]
[1746481938078,14.04226788,147.0,146.97,6.8051]
[1746481938879,14.04226788,147.0,146.96,30.8454]
[1746481939579,6.8043,146.99,146.96,30.8454]
[1746481939778,6.8043,146.99,146.96,24.04]
[1746481940471,6.8043,146.99,146.96,30.8455]
[1746481942379,14.04246788,147.0,146.96,30.8455]
[1746481942679,7.23856788,147.0,146.96,30.8455]
[1746481943876,14.04266788,147.0,146.96,30.8455]
[1746481947181,7.23856788,147.0,146.96,30.8455]
[1746481947387,6.8043,146.99,146.96,30.8455]
[1746481947585,6.8043,146.99,146.97,6.805]
[1746481948587,6.8043,146.99,146.96,30.8453]
[1746481952886,14.04246788,147.0,146.97,6.805]
[1746481953191,7.23856788,147.0,146.97,6.805]
[1746481953387,6.8044,146.99,146.96,24.04]
[1746481953691,6.8044,146.99,146.93,31.89856788]
[1746481953993,6.8044,146.99,146.96,6.8053]
[1746481954591,6.2395,147.07,146.93,31.89856788]
[1746481954796,6.2395,147.07,146.98,7.23856788]
[1746481955092,7.23856788,147.04,146.97,7.23856788]
[1746481955295,14.04076788,147.04,147.0,6.8034]
[1746481956293,14.04076788,147.04,147.0,6.8036]
[1746481958300,14.04076788,147.04,147.01,6.8032]
[1746481963801,6.8023,147.03,147.0,6.8035]
[1746481965999,7.23856788,147.04,147.0,6.8035]
[1746481966603,6.803,147.02,146.99,6.8037]
[1746481967590,14.04156788,147.02,146.99,6.8037]
[1746481967790,7.23856788,147.02,146.97,32.985]
[1746481967998,7.23856788,147.02,146.97,26.18]
[1746481970600,7.23856788,147.02,147.01,6.8032]
[1746481972301,14.04136788,147.02,146.97,26.18]
[1746481972799,7.23856788,147.02,147.0,6.8034]
[1746481973603,7.23856788,147.02,147.01,6.8032]
[1746481974602,7.23856788,147.06,147.0,7.23856788]
[1746481974899,7.23856788,147.06,146.98,7.23856788]
[1746481975102,7.23856788,147.04,146.98,7.23856788]
[1746481975303,14.04046788,147.04,146.98,7.23856788]
[1746481976105,14.04046788,147.04,147.01,6.803]
[1746481977701,6.8024,147.03,147.0,6.8034]
[1746481978704,7.23856788,147.04,147.0,6.8034]
[1746481978905,7.23856788,147.04,146.99,6.8039]
[1746481979099,7.23856788,147.02,146.97,26.18]
[1746481979295,7.23856788,147.02,146.96,111.51855855]
[1746481979501,26.18,147.05,146.96,118.32385855]
[1746481979704,7.23856788,147.0,146.96,111.51855855]
[1746481979905,6.8046,146.99,146.96,118.32395855]
[1746481981106,14.04246788,147.0,146.97,6.8051]
[1746481981309,6.8039,147.0,146.97,6.8051]
[1746481981607,14.04246788,147.0,146.97,6.8051]
[1746481985508,6.8039,147.0,146.97,6.8051]
[1746481991425,6.8039,147.0,146.98,6.8046]
[1746481992124,7.23856788,147.02,146.95,7.23856788]
[1746481992324,7.23856788,147.03,146.97,7.23856788]
[1746481992723,7.23856788,147.03,147.01,6.8028]
[1746481993218,14.03946788,147.07,147.03,6.802]
[1746481993417,7.23856788,147.07,147.03,6.802]
[1746481993618,32.93856788,147.07,147.03,6.802]
[1746481994023,6.8012,147.06,147.03,6.802]
[1746481996328,7.23856788,147.05,147.03,6.802]
[1746482000129,14.04036788,147.05,146.99,32.93856788]
[1746482000629,14.04036788,147.05,147.02,6.8025]
[1746482001030,7.23856788,147.05,146.99,25.7]
[1746482001724,6.8021,147.04,147.01,6.8029]
[1746482003030,7.23856788,147.03,147.01,6.8029]
[1746482004731,6.8021,147.04,147.01,6.8029]
[1746482005032,14.04066788,147.04,147.01,6.8029]
[1746482007034,14.04066788,147.04,147.01,7.8029]
[1746482008633,7.23856788,147.04,147.02,6.8027]
[1746482009433,7.23856788,147.04,147.01,7.803]
[1746482010233,14.04046788,147.04,147.01,7.803]
[1746482012833,14.03476965,147.04,147.01,7.803]
[1746482013035,6.8024,147.03,147.01,1.0]
[1746482013935,6.8028,147.02,147.01,1.0]
[1746482014133,14.03566965,147.02,147.01,1.0]
[1746482014332,7.23625542,147.02,146.94,13.35565542]
[1746482014637,7.23625542,147.02,146.96,6.8054]
[1746482015439,6.8042,146.99,146.96,6.8054]
[1746482015638,7.23625542,147.02,146.97,6.8051]
[1746482016139,6.804,147.0,146.97,6.8051]
[1746482016438,6.804,147.0,146.96,6.8053]
[1746482017142,7.23625542,147.02,146.94,8.7774]
[1746482017434,7.23625542,147.0,146.94,8.7774]
[1746482017639,25.28,146.99,146.94,8.7774]
[1746482017945,6.8049,146.98,146.94,8.7774]
[1746482018444,6.8051,146.97,146.94,8.7774]
[1746482020544,6.8051,146.97,146.94,6.8062]
[1746482025045,6.8058,146.96,146.94,6.8062]
[1746482025642,7.23625542,146.98,146.92,6.807]
[1746482025840,7.23625542,146.98,146.91,3.113]
[1746482026040,9.37705542,146.98,146.91,3.113]
[1746482026347,6.8074,146.92,146.91,1.0]
[1746482027650,6.807,146.93,146.91,1.0]
[1746482027955,25.3,146.95,146.91,1.0]
[1746482028448,6.8068,146.94,146.91,1.0]
[1746482028649,25.3,146.95,146.91,1.0]
[1746482029452,6.8067,146.94,146.91,1.0]
[1746482030251,6.8067,146.94,146.91,7.8078]
[1746482031252,6.8067,146.94,146.91,1.0]
[1746482032256,6.807,146.93,146.91,1.0]
[1746482050178,24.94,147.06,146.92,7.24144854]
[1746482050381,7.24144854,147.01,146.93,1.9363]
[1746482050680,6.8031,147.02,146.98,6.8043]
[1746482050885,7.24144854,147.01,146.98,6.8043]
[1746482051683,32.9231,147.02,146.98,6.8043]
[1746482053086,26.12,147.02,146.99,6.804]
[1746482053282,4.1627,147.05,146.95,26.12]
[1746482053484,26.12,147.04,146.95,26.12]
[1746482053681,26.12,147.04,147.01,6.8029]
[1746482055388,26.12,147.04,147.02,6.8027]
[1746482055782,26.12,147.04,146.95,26.12]
[1746482055984,26.12,147.04,147.01,6.803]
[1746482056288,26.12,147.04,146.95,26.12]
[1746482056888,32.922,147.04,146.95,26.12]
[1746482057187,32.922,147.04,147.01,6.803]
[1746482057388,32.922,147.04,146.95,26.12]
[1746482057581,32.922,147.04,147.01,6.8029]
[1746482058992,6.8016,147.05,147.02,6.8027]
[1746482059789,6.8018,147.04,147.01,6.8031]
[1746482059989,11.30374167,147.06,147.01,6.8031]
[1746482060185,6.8016,147.05,147.02,6.8026]
[1746482060990,6.8019,147.04,147.01,6.803]
[1746482062191,6.8016,147.05,147.01,6.803]
[1746482062491,6.8016,147.05,147.02,6.8027]
[1746482063192,18.10484167,147.06,147.02,6.8027]
[1746482064194,6.8014,147.05,147.01,6.803]
[1746482065492,6.8022,147.04,147.01,6.803]
[1746482066595,6.8016,147.05,147.01,6.803]
[1746482067997,6.8019,147.04,147.01,6.803]
[1746482069597,11.30374167,147.06,146.95,26.12]
[1746482070396,6.804,147.0,146.95,26.12]
[1746482070596,26.1,147.02,146.95,26.12]
[1746482071100,6.8042,146.99,146.96,6.8053]
[1746482072495,6.8046,146.98,146.96,6.8053]
[1746482077503,6.8046,146.98,146.95,32.9258]
[1746482078704,6.8044,146.99,146.96,6.8053]
[1746482080205,6.8049,146.98,146.96,6.8053]
[1746482081698,6.8049,146.98,146.95,32.9258]
[1746482081895,6.8049,146.98,146.94,7.23614021]
[1746482082099,6.8049,146.98,146.93,1.9363]
[1746482082300,6.8049,146.98,146.96,6.8052]
[1746482083118,6.8044,146.99,146.96,6.8052]
[1746482083607,6.8044,146.99,146.97,6.8051]
[1746482085209,6.8038,147.0,146.97,6.8051]
[1746482086710,6.8042,146.99,146.97,6.8051]
[1746482087205,6.8042,146.99,146.96,6.8053]
[1746482089810,6.8047,146.98,146.96,6.8053]
[1746482090010,6.8047,146.98,146.95,6.8058]
[1746482091906,7.23614021,147.0,146.94,6.8062]
[1746482092105,7.23614021,146.98,146.94,6.8062]
[1746482092306,32.83614021,146.98,146.94,6.8062]
[1746482092911,6.8054,146.97,146.94,6.8062]
[1746482097215,6.8054,146.97,146.95,6.806]
[1746482103017,32.4049,146.98,146.95,6.806]
[1746482104017,25.6,146.98,146.96,6.8053]
[1746482104217,25.6,146.98,146.92,34.77514021]
[1746482104719,25.6,146.98,146.97,6.8051]
[1746482107424,25.6,147.02,146.95,7.23497378]
[1746482107629,32.83497378,147.02,146.95,7.23497378]
[1746482107829,6.8033,147.01,146.99,6.8037]
[1746482108127,25.6,147.02,146.95,7.23497378]
[1746482108630,16.02317378,147.03,146.95,7.23497378]
[1746482108830,9.22067378,147.03,146.95,7.23497378]
[1746482109031,34.82067378,147.03,146.95,7.23497378]
[1746482109230,34.82004787,147.03,147.01,6.803]
[1746482109933,41.62234787,147.03,147.01,6.803]
[1746482111835,34.82004787,147.03,147.01,6.803]
[1746482113438,32.83434787,147.03,147.01,6.803]
[1746482116037,25.6,147.03,147.01,6.803]
[1746482116240,32.83434787,147.03,147.01,6.803]
[1746482116438,32.83366039,147.03,147.01,6.803]
[1746482116937,32.83388077,147.03,147.01,6.803]
[1746482117138,39.63618077,147.03,147.01,6.803]
[1746482117438,39.63618077,147.03,147.0,6.8035]
[1746482117839,32.4023,147.03,146.97,2.0234]
[1746482118041,39.63618077,147.03,146.97,2.0234]
[1746482118638,39.63618077,147.03,147.0,6.8034]
[1746482121245,39.63618077,147.03,147.01,6.8032]
[1746482121843,32.4023,147.03,147.0,6.8035]
[1746482122142,39.63618077,147.03,147.0,6.8035]
[1746482123743,39.63618077,147.03,147.01,6.8032]
[1746482131147,39.63618077,147.03,147.0,6.8035]
[1746482134951,39.63618077,147.03,147.01,6.8031]
[1746482135544,39.63618077,147.03,147.0,6.8034]
[1746482136955,32.83388077,147.03,146.97,2.0234]
[1746482137552,32.83388077,147.03,147.01,6.803]
[1746482138152,32.83388077,147.03,146.99,6.804]
[1746482138355,7.23388077,147.01,146.96,25.1]
[1746482138854,6.8039,147.0,146.98,6.8046]
[1746482139050,7.23388077,147.01,146.98,6.8046]
[1746482139252,7.23388077,147.01,146.97,1.0]
[1746482139753,32.83388077,147.03,146.97,1.0]
[1746482140455,6.803,147.02,147.0,6.8036]
[1746482143455,39.63645186,147.03,147.01,6.8032]
[1746482143656,39.63645186,147.03,146.97,1.0]
[1746482143857,39.63645186,147.03,147.0,6.8033]
[1746482148450,32.4026,147.03,147.0,6.8033]
[1746482148653,39.63645186,147.03,147.0,6.8033]
[1746482152163,32.4026,147.03,147.0,6.8033]
[1746482156068,32.4026,147.03,146.99,6.8039]
[1746482156568,6.8029,147.02,146.99,6.8039]
[1746482163282,6.8029,147.02,147.0,6.8037]
[1746482174588,25.6,147.03,147.0,6.8037]
[1746482175491,6.8028,147.02,147.0,6.8037]
[1746482177289,6.8023,147.03,147.01,6.8029]
[1746482178092,6.8023,147.03,147.0,6.8034]
[1746482178395,6.8023,147.03,146.98,2.1426]
[1746482179095,6.8023,147.03,147.01,6.8031]
[1746482179800,3.9837,147.08,147.02,6.8026]
[1746482179991,7.23385186,147.05,147.02,6.8026]
[1746482180295,7.23385186,147.05,146.98,9.37645186]
[1746482180594,6.8021,147.04,147.01,6.8029]
[1746482181496,6.8023,147.03,147.01,6.8029]
[1746482182698,6.8021,147.04,147.01,6.8029]
[1746482183796,6.8023,147.03,147.01,6.8029]
[1746482184992,6.8021,147.04,147.01,6.8029]
[1746482188791,6.8023,147.03,147.01,6.8029]
[1746482191900,6.8021,147.04,147.01,6.8029]
[1746482192896,7.23385186,147.07,146.98,7.23385186]
[1746482193295,7.23385186,147.07,147.03,6.8021]
[1746482193296,6.8011,147.06,147.03,6.8021]
[1746482194900,14.03160481,147.06,147.03,6.8021]
[1746482195299,14.03156831,147.06,147.03,6.8021]
[1746482200410,7.23088999,147.05,147.03,6.8021]
[1746482204206,7.23088999,147.05,146.98,1.0]
[1746482204207,6.8019,147.04,147.01,6.8029]
[1746482204414,24.46,147.04,146.98,1.0]
[1746482204608,7.23088999,147.01,146.98,1.0]
[1746482204910,14.03438999,147.01,146.98,1.0]
[1746482205211,7.23088999,147.01,146.98,1.0]
[1746482205509,6.8039,147.0,146.98,1.0]
[1746482208412,7.23088999,147.01,146.98,1.0]
[1746482208413,6.8042,146.99,146.98,1.0]
[1746482208712,31.2642,146.99,146.98,1.0]
[1746482209514,6.8051,146.97,146.93,6.8067]
[1746482209713,14.03598999,146.97,146.93,6.8067]
[1746482210811,14.03598999,146.97,146.94,6.8064]
[1746482212817,7.23088999,146.95,146.91,1.0]
[1746482213015,7.23088999,146.93,146.91,1.0]
[1746482213412,14.03818999,146.93,146.91,1.0]
[1746482213711,6.8073,146.93,146.91,1.0]
[1746482214506,7.23088999,146.93,146.84,215.21916118]
[1746482214710,7.23088999,146.91,146.84,215.21916118]
[1746482215016,31.2886,146.9,146.86,6.8099]
[1746482215214,24.48,146.9,146.86,6.8099]
[1746482215817,31.2884,146.9,146.86,6.8099]
[1746482216316,24.48,146.9,146.87,6.8094]
[1746482216715,24.48,146.9,146.86,7.23088999]
[1746482216919,24.48,146.93,146.88,7.23088999]
[1746482217619,31.287,146.93,146.9,6.8081]
[1746482218220,6.8066,146.94,146.91,6.8076]
[1746482218424,31.2866,146.94,146.91,6.8076]
[1746482219526,6.807,146.93,146.91,6.8076]
[1746482220022,24.48,146.94,146.91,6.8076]
[1746482220322,7.23088999,146.93,146.87,7.23088999]
[1746482220511,7.23088999,146.93,146.86,7.23088999]
[1746482220717,7.23088999,146.91,146.85,31.71088999]
[1746482220912,24.48,146.9,146.85,7.23088999]
[1746482221117,6.8091,146.89,146.86,6.81]
[1746482221924,6.8091,146.89,146.84,207.98827119]
[1746482221925,31.2885,146.9,146.87,6.8096]
[1746482223430,6.8089,146.89,146.86,6.81]
[1746482223826,24.48,146.9,146.84,207.98827119]
[1746482224628,24.48,146.9,146.84,1.0]
[1746482224831,11.32072583,146.88,146.84,1.0]
[1746482225329,6.8105,146.86,146.84,1.0]
[1746482225530,31.2905,146.86,146.84,1.0]
[1746482225926,6.8106,146.85,146.84,1.0]
[1746482228923,31.2904,146.86,146.84,1.0]
[1746482229118,24.48,146.86,146.84,1.0]
[1746482229525,35.82072583,146.91,146.84,1.0]
[1746482229725,24.5,146.91,146.84,1.0]
[1746482229927,24.5,146.91,146.87,6.8096]
[1746482230133,6.8084,146.9,146.87,6.8096]
[1746482230333,24.5,146.91,146.88,6.809]
[1746482230832,24.5,146.91,146.84,1.0]
[1746482231433,31.3079,146.91,146.84,1.0]
[1746482231831,31.3079,146.91,146.88,6.809]
[1746482232132,6.8079,146.91,146.88,6.809]
[1746482235237,6.8079,146.91,146.89,6.8088]
[1746482237337,6.8079,146.91,146.88,6.8092]
[1746482238240,6.8079,146.91,146.89,6.8088]
[1746482238734,6.8079,146.91,146.86,24.5]
[1746482238936,11.32072583,146.91,146.86,24.5]
[1746482239137,11.32072583,146.91,146.84,1.0]
[1746482239339,6.81,146.87,146.84,7.811]
[1746482240433,6.8104,146.86,146.84,1.0]
[1746482240633,24.48,146.9,146.84,1.0]
[1746482242435,6.8092,146.89,146.84,1.0]
[1746482242652,24.48,146.9,146.84,1.0]
[1746482243243,6.8094,146.88,146.84,1.0]
[1746482243443,24.48,146.9,146.84,1.0]
[1746482243645,6.8091,146.89,146.85,6.8103]
[1746482244143,24.48,146.9,146.84,1.0]
[1746482245441,6.8095,146.88,146.85,6.8106]
[1746482250049,6.8095,146.88,146.84,7.8109]
[1746482252251,6.8097,146.87,146.84,7.8109]
[1746482255750,6.8103,146.86,146.84,7.8109]
[1746482260856,6.8106,146.85,146.84,1.0]
[1746482286772,31.2904,146.86,146.84,1.0]
[1746482289775,7.25006904,146.85,146.84,1.0]
[1746482290374,14.06066904,146.85,146.84,1.0]
[1746482290574,7.25006904,146.85,146.84,1.0]
[1746482292881,14.06066904,146.85,146.84,1.0]
[1746482298282,7.25006904,146.85,146.84,1.0]
[1746482299478,14.06066904,146.85,146.84,1.0]
[1746482301687,6.8118,146.83,146.81,1.0]
[1746482301879,7.25006904,146.83,146.81,1.0]
[1746482302686,6.812,146.82,146.81,1.0]
[1746482315390,6.8134,146.8,146.77,33.4241]
[1746482315586,14.06346904,146.8,146.77,8.9441]
[1746482316583,14.06346904,146.8,146.77,2.1299]
[1746482316791,6.8136,146.79,146.77,2.1299]
[1746482317880,6.8136,146.79,146.77,6.8143]
[1746482321594,6.8136,146.79,146.78,6.8139]
[1746482322898,14.06326904,146.8,146.78,6.8139]
[1746482323797,6.8134,146.79,146.77,6.8141]
[1746482324299,7.25006904,146.8,146.77,6.8141]
[1746482324698,7.25006904,146.78,146.75,1.0]
[1746482324894,7.25006904,146.76,146.75,1.0]
[1746482325098,14.06486904,146.76,146.75,1.0]
[1746482326604,14.06486904,146.76,146.73,141.59556103]
[1746482326804,7.25006904,146.74,146.73,148.41176103]
[1746482326999,7.25006904,146.74,146.73,141.59556103]
[1746482327206,7.25006904,146.74,146.72,1.0]
[1746482327603,14.06606904,146.74,146.72,1.0]
[1746482328000,31.69006904,146.74,146.72,1.0]
[1746482328300,38.50606904,146.74,146.72,1.0]
[1746482328702,6.8162,146.73,146.72,2.0]
[1746482329004,31.69006904,146.74,146.72,2.0]
[1746482329509,6.8162,146.73,146.72,2.0]
[1746482329708,11.3507547,146.73,146.71,3.0]
[1746482330308,6.8167,146.72,146.71,3.0]
[1746482334810,11.3507547,146.73,146.65,26.4555]
[1746482335007,11.3507547,146.7,146.65,6.8196]
[1746482335207,35.8107547,146.7,146.64,141.66711994]
[1746482335408,35.8107547,146.7,146.63,1.0]
[1746482335711,6.8193,146.67,146.63,7.8205]
[1746482335911,6.8193,146.67,146.63,1.0]
[1746482336312,6.8193,146.67,146.64,6.8201]
[1746482336612,6.8187,146.68,146.64,6.8201]
[1746482336811,35.8107547,146.7,146.63,1.0]
[1746482337210,6.8182,146.69,146.63,1.0]
[1746482337409,6.8182,146.69,146.66,6.8192]
[1746482337610,11.3507547,146.7,146.63,1.0]
[1746482337811,24.46,146.71,146.63,25.46]
[1746482338108,24.46,146.71,146.7,6.8176]
[1746482338314,11.3507547,146.73,146.64,4.2531]
[1746482338812,18.1671547,146.73,146.64,4.2531]
[1746482339013,18.1671547,146.73,146.7,6.8172]
[1746482340818,11.3507547,146.73,146.64,4.2531]
[1746482341410,6.8174,146.71,146.64,4.2531]
[1746482341819,11.3507547,146.73,146.64,4.2531]
[1746482342013,6.8177,146.7,146.67,6.8186]
[1746482342316,6.8177,146.7,146.64,4.2531]
[1746482342514,6.8174,146.71,146.68,6.8183]
[1746482343315,11.3507547,146.73,146.68,6.8183]
[1746482343922,6.8174,146.71,146.68,6.8183]
[1746482344117,6.8174,146.71,146.67,6.8188]
[1746482344319,6.8174,146.71,146.64,4.2531]
[1746482344821,6.8174,146.71,146.68,6.8184]
[1746482345120,6.8177,146.7,146.68,6.8184]
[1746482345322,11.3507547,146.7,146.66,6.8192]
[1746482345523,35.8107547,146.7,146.66,6.8192]
[1746482346022,6.8181,146.69,146.66,6.8192]
[1746482346224,35.8107547,146.7,146.63,25.46]
[1746482347323,6.8189,146.68,146.64,6.82]
[1746482347926,6.819,146.67,146.64,6.82]
[1746482350424,6.8195,146.66,146.64,6.82]
[1746482351826,6.8195,146.66,146.63,7.8206]
[1746482352225,11.3507547,146.67,146.63,1.0]
[1746482353124,6.8202,146.65,146.63,1.0]
[1746482353519,11.3507547,146.67,146.63,1.0]
[1746482353825,6.8204,146.64,146.63,1.0]
[1746482354024,24.46,146.66,146.63,7.8208]
[1746482354225,11.3507547,146.67,146.63,1.0]
[1746482354425,31.2792,146.67,146.63,1.0]
[1746482354620,31.2792,146.67,146.64,6.8202]
[1746482355026,6.8195,146.66,146.64,6.8202]
[1746482356228,24.46,146.67,146.64,6.8202]
[1746482356423,24.46,146.67,146.63,7.8208]
[1746482356624,6.8198,146.66,146.63,7.8208]
[1746482358529,6.8199,146.65,146.63,7.8208]
[1746482358722,24.46,146.67,146.63,7.8208]
[1746482359627,6.8197,146.66,146.64,6.8203]
[1746482361128,31.2791,146.67,146.65,6.8196]
[1746482361525,6.8191,146.67,146.65,6.8196]
[1746482365529,18.1694547,146.68,146.63,1.0]
[1746482365734,24.46,146.69,146.63,1.0]
[1746482366435,31.2785,146.69,146.66,6.8192]
[1746482366736,24.46,146.69,146.66,6.8192]
[1746482367133,6.8186,146.68,146.66,6.8192]
[1746482372039,31.2782,146.69,146.63,1.0]
[1746482373037,31.2782,146.69,146.66,6.8192]
[1746482373237,24.46,146.69,146.63,1.0]
[1746482373437,24.46,146.69,146.64,4.1152]
[1746482373637,6.8179,146.7,146.67,6.8187]
[1746482374938,6.8183,146.69,146.66,6.8192]
[1746482375941,6.8179,146.7,146.67,6.819]
[1746482376136,37.9411547,146.72,146.67,6.819]
[1746482376534,35.8107547,146.72,146.68,6.8181]
[1746482376738,11.3507547,146.72,146.65,24.46]
[1746482377054,18.1676547,146.72,146.69,6.8178]
[1746482377435,18.1676547,146.72,146.65,24.46]
[1746482377641,6.8164,146.73,146.65,24.46]
[1746482379342,6.8164,146.73,146.71,6.817]
[1746482379549,24.44,146.77,146.65,38.0997]
[1746482379740,24.44,146.77,146.65,24.46]
[1746482380738,24.44,146.77,146.66,13.6388]
[1746482380944,24.44,146.77,146.67,2.1022]
[1746482381744,24.44,146.77,146.74,6.8155]
[1746482382843,31.2546,146.77,146.74,6.8155]
[1746482383247,24.44,146.77,146.75,6.815]
[1746482383644,6.8142,146.78,146.75,6.815]
[1746482383645,564.56,146.8,146.75,6.815]
[1746482384250,6.814,146.78,146.75,6.815]
[1746482384549,564.56,146.8,146.75,6.815]
[1746482384752,6.8142,146.78,146.75,6.815]
[1746482385652,18.1643547,146.79,146.76,6.8148]
[1746482387453,18.1643547,146.79,146.72,4.0355]
[1746482387454,6.814,146.78,146.75,6.815]
[1746482388254,6.814,146.78,146.76,6.8148]
[1746482389354,6.8144,146.77,146.72,4.0355]
[1746482389954,6.8142,146.78,146.75,6.8152]
[1746482390260,6.8142,146.78,146.72,4.0355]
[1746482391049,6.8142,146.78,146.75,6.8151]
[1746482393757,6.8144,146.77,146.75,6.8151]
[1746482394557,6.8144,146.77,146.74,6.8156]
[1746482395359,6.8144,146.77,146.73,6.816]
[1746482395560,24.42,146.76,146.72,1.0]
[1746482396961,6.8162,146.73,146.72,1.0]
[1746482400563,6.818,146.7,146.65,24.42]
[1746482401063,6.8174,146.71,146.65,24.42]
[1746482401461,2.0881,146.75,146.66,2.0967]
[1746482401764,4.1016,146.78,146.66,13.4474547]
[1746482401964,35.7707547,146.79,146.66,13.4474547]
[1746482402662,11.3507547,146.76,146.66,13.4474547]
[1746482402864,11.3507547,146.76,146.66,2.0967]
[1746482403065,6.8146,146.77,146.74,6.8154]
[1746482403267,35.7707547,146.79,146.74,6.8154]
[1746482403571,42.5843547,146.79,146.7,24.42]
[1746482403864,6.8136,146.79,146.71,4.1192]
[1746482404162,24.42,146.82,146.71,17.7531]
[1746482404366,24.42,146.85,146.72,13.3084547]
[1746482404765,24.42,146.85,146.75,11.3507547]
[1746482404967,2.02,146.88,146.76,24.42]
[1746482405263,11.3507547,146.86,146.76,24.42]
[1746482405468,11.3507547,146.86,146.77,4.1192]
[1746482405661,6.811,146.85,146.81,6.8122]
[1746482406268,6.811,146.85,146.82,6.812]
[1746482406469,6.8111,146.84,146.77,4.1192]
[1746482407269,6.8111,146.84,146.81,6.8122]
[1746482407569,6.8117,146.83,146.77,4.1192]
[1746482407770,11.3507547,146.86,146.79,6.8132]
[1746482408069,11.3507547,146.83,146.77,4.1192]
[1746482408262,6.8121,146.82,146.79,6.8133]
[1746482411871,11.3507547,146.83,146.76,24.42]
[1746482412673,6.8125,146.81,146.78,6.8138]
[1746482412971,1.9923,146.84,146.76,24.42]